[Event "2nd FIDE WCC Rapid G12"]
[Site "Minsk"]
[Date "2018.06.23"]
[Round "7"]
[White "Gaal, Zsoka"]
[Black "Petrova, Varvara"]
[Result "1-0"]
[ECO "A05"]
[WhiteElo "2060"]
[BlackElo "1500"]
[Annotator "NA"]
[PlyCount "92"]
[EventDate "2018.06.22"]
[EventType "rapid"]
[EventCountry "BLR"]
[SourceTitle "playchess.com"]
[Source "ChessBase"]
[SourceQuality "1"]
[TimeControl "600+5"]

1. Nf3 {[%emt 0:00:00]} Nf6 {[%emt 0:00:01]} 2. g3 {[%emt 0:00:00]} d5 {[%emt 0:00:01]} 3. Bg2 {[%emt 0:00:00]} g6 {[%emt 0:00:01]} 4. d4 {[%emt 0:00:03]} Bg7 {[%emt 0:00:01]} 5. O-O {[%emt 0:00:02]} O-O {[%emt 0:00:01]} 6. c4 {[%emt 0:00:02]} dxc4 {[%emt 0:00:06]} 7. Qa4 {[%emt 0:00:22]} c6 {[%emt 0:00:06]} 8. Qxc4 {[%emt 0:00:04]} Nd5 {[%emt 0:00:04] D78: Fianchetto Grünfeld: 6 0-0 c6} (8... Bf5 9. Nc3 Nbd7 10. h3 Ne4 11. Qb3 Qb6 12. Rd1 Qxb3 13. axb3 Nb6 14. Ne1 Nxc3 15. bxc3 Be6 16. Rb1 a5 17. Nd3 a4 {1-0 (38) Gelfand,B (2695)-Sutovsky,E (2647) Poikovsky 2018}) 9. Nc3 {[%emt 0:00:37]} Nb6 {[%emt 0:00:16]} 10. Qb3 {[%emt 0:00:14]} N8d7 {[%emt 0:00:12]} 11. Bf4 {[%emt 0:00:44]} Nf6 {[%emt 0:00:08]} 12. Rfd1 {[%emt 0:00:18]} e6 $146 {[%emt 0:00:24]} ({Predecessor:} 12... Be6 13. Qc2 Nfd5 14. Bd2 Nb4 15. Qc1 Re8 16. a3 N4d5 17. e4 {1-0 (50) Mamonov,A (1763)-Kruzhilin,A Saratov 2011}) 13. Rac1 {[%emt 0:00:15]} Qe7 {[%emt 0:00:04]} 14. Bg5 {[%emt 0:01:14]} h6 {[%emt 0:00:06]} 15. Bxf6 {[%emt 0:00:03]} Bxf6 {[%emt 0:00:09]} 16. Ne4 {[%emt 0:00:12]} Bg7 {[%emt 0:00:07]} 17. Nc5 {[%emt 0:00:41]} Nd5 {[%emt 0:00:18]} 18. Ne5 {[%emt 0:00:52]} Qc7 {[%emt 0:01:41]} 19. Ncd3 {[%emt 0:01:15]} Qd6 {[%emt 0:00:12]} 20. Nc4 {[%emt 0:00:30]} Qe7 {[%emt 0:00:12]} 21. e3 {[%emt 0:00:14]} Rd8 {[%emt 0:01:23]} 22. Nc5 {[%emt 0:00:43]} b6 {[%emt 0:00:41]} 23. Nd3 {[%emt 0:00:13]} Bb7 {[%emt 0:00:04]} 24. Nce5 {[%emt 0:00:41]} Rac8 {[%emt 0:00:08]} 25. Qa4 {[%emt 0:00:23]} Bxe5 {[%emt 0:01:02]} 26. Nxe5 $16 {[%emt 0:00:05]} a6 {[%emt 0:00:15]} 27. Qb3 {[%emt 0:01:00]} b5 {[%emt 0:01:31]} 28. Nd3 {[%emt 0:00:40]} Nb6 {[%emt 0:00:23]} 29. Nc5 {[%emt 0:00:07]} Nc4 {[%emt 0:00:12]} 30. Qc3 {[%emt 0:00:08]} Nd6 {[%emt 0:01:29]} 31. b3 {[%emt 0:00:12]} Nf5 {[%emt 0:00:38]} 32. Qe1 {[%emt 0:00:26]} a5 {[%emt 0:00:08]} 33. Qe2 {[%emt 0:00:02]} Ba8 {[%emt 0:00:05]} 34. Qg4 {[%emt 0:00:09]} h5 {[%emt 0:00:05]} 35. Qe2 {[%emt 0:00:02]} Kg7 {[%emt 0:00:01]} 36. Rd2 {[%emt 0:00:14]} Rd6 {[%emt 0:00:19]} 37. Ne4 {[%emt 0:00:06]} Rdd8 {[%emt 0:00:03]} 38. Rdc2 {[%emt 0:00:06]} Nd6 {[%emt 0:00:13]} 39. Nc5 {[%emt 0:00:02]} Nf5 {[%emt 0:00:10]} 40. Nd3 {[%emt 0:00:06]} Qd6 {[%emt 0:00:06]} 41. Ne5 {[%emt 0:00:04]} Ne7 {[%emt 0:00:05]} 42. Rc5 {[%emt 0:00:06]} Rc7 {[%emt 0:00:04]} 43. Qf3 {[%emt 0:00:03]} Rdc8 {[%emt 0:00:01]} 44. Qxf7+ {[%emt 0:00:02]} Kh6 {[%emt 0:00:11]} 45. Qf4+ {[%emt 0:00:06]} Kg7 {[%emt 0:00:04]} 46. Nd3 {[%emt 0:00:08]} Qd7 {time} 1-0

[Event "2nd FIDE WCC Rapid G12"]
[Site "Minsk"]
[Date "2018.06.23"]
[Round "7"]
[White "Omonova, Umida"]
[Black "Cherepanova, Evita"]
[Result "1-0"]
[ECO "C07"]
[WhiteElo "1733"]
[BlackElo "1604"]
[Annotator "NA"]
[PlyCount "83"]
[EventDate "2018.06.22"]
[EventType "rapid"]
[EventCountry "BLR"]
[SourceTitle "playchess.com"]
[Source "ChessBase"]
[SourceQuality "1"]
[TimeControl "600+5"]

1. e4 {[%emt 0:00:00]} e6 {[%emt 0:00:01]} 2. d4 {[%emt 0:00:00]} d5 {[%emt 0:00:00]} 3. Nd2 {[%emt 0:00:01]} c5 {[%emt 0:00:02]} 4. exd5 {[%emt 0:00:03]} Qxd5 {[%emt 0:00:01]} 5. Ngf3 {[%emt 0:00:06]} cxd4 {[%emt 0:00:08]} 6. Bc4 {[%emt 0:00:02]} Qd7 {[%emt 0:00:01]} 7. O-O {[%emt 0:00:10]} Nf6 {[%emt 0:00:04]} 8. Nb3 {[%emt 0:00:03]} Nc6 {[%emt 0:00:01]} 9. Nbxd4 {[%emt 0:00:03]} Nxd4 {[%emt 0:00:03]} 10. Nxd4 {[%emt 0:00:02]} a6 {[%emt 0:00:00]} 11. Bg5 {[%emt 0:01:06]} Be7 {[%emt 0:01:23]} 12. Re1 {[%emt 0:00:27]} O-O {[%emt 0:00:38]} 13. c3 {[%emt 0:00:09]} Qc7 {[%emt 0:01:58]} 14. Bd3 {[%emt 0:01:07]} h6 {[%emt 0:02:39]} 15. Bh4 {[%emt 0:00:21]} b5 {[%emt 0:01:01]} 16. Bc2 {[%emt 0:01:56]} Bb7 {[%emt 0:01:57]} 17. Qe2 {[%emt 0:02:48]} Rfe8 {[%emt 0:00:19]} 18. Bg3 {[%emt 0:00:28]} Qb6 {[%emt 0:00:39]} 19. Rad1 {[%emt 0:00:25]} Rad8 {[%emt 0:00:22]} 20. a3 {[%emt 0:00:31]} Bd5 {[%emt 0:00:17]} 21. Be5 {[%emt 0:00:25]} Bc4 {[%emt 0:00:07]} 22. Qf3 {[%emt 0:00:15]} Bd5 {[%emt 0:00:05]} 23. Qg3 {[%emt 0:00:02]} Qb7 {[%emt 0:00:07]} 24. f3 {[%emt 0:00:24]} Nh5 {[%emt 0:00:04]} 25. Qh3 {[%emt 0:00:14]} Nf6 {[%emt 0:00:02]} 26. Qg3 {[%emt 0:00:06]} Nh5 {[%emt 0:00:05]} 27. Qh3 {[%emt 0:00:02]} Nf6 {[%emt 0:00:05]} 28. Rd2 {[%emt 0:00:19]} Nd7 {[%emt 0:00:08]} 29. Bg3 {[%emt 0:00:18]} Nf6 {[%emt 0:00:04]} 30. Rde2 {[%emt 0:00:03]} Bf8 {[%emt 0:00:06]} 31. Be5 {[%emt 0:00:16]} Be7 {[%emt 0:00:04]} 32. Bg3 {[%emt 0:00:08]} Bd6 {[%emt 0:00:05]} 33. Bh4 {[%emt 0:00:02]} Be7 {[%emt 0:00:02]} 34. f4 {[%emt 0:00:03]} Nh7 {[%emt 0:00:10]} 35. Bxe7 {[%emt 0:00:05]} Rxe7 {[%emt 0:00:02]} 36. f5 {[%emt 0:00:00]} Ng5 {[%emt 0:00:06]} 37. Qg3 {[%emt 0:00:05]} Rde8 {[%emt 0:00:06]} 38. f6 {[%emt 0:00:02]} Rc7 {[%emt 0:00:06]} 39. h4 {[%emt 0:00:03]} a5 {[%emt 0:00:06]} 40. hxg5 {[%emt 0:00:01]} hxg5 {[%emt 0:00:02]} 41. Qxg5 {[%emt 0:00:01]} g6 {[%emt 0:00:03]} 42. Qh6 {[%emt 0:00:01]} 1-0

[Event "2nd FIDE WCC Rapid G12"]
[Site "Minsk"]
[Date "2018.06.23"]
[Round "7"]
[White "Ivanytska, Liudmyla"]
[Black "Andrukhovich, Elizaveta"]
[Result "1-0"]
[ECO "C28"]
[WhiteElo "1545"]
[BlackElo "1472"]
[Annotator "NA"]
[PlyCount "139"]
[EventDate "2018.06.22"]
[EventType "rapid"]
[EventCountry "BLR"]
[SourceTitle "playchess.com"]
[Source "ChessBase"]
[SourceQuality "1"]
[TimeControl "600+5"]

1. e4 {[%emt 0:00:00]} e5 {[%emt 0:00:02]} 2. Nc3 {[%emt 0:00:00]} Nf6 {[%emt 0:00:06]} 3. Bc4 {[%emt 0:00:02]} Nc6 {[%emt 0:00:10]} 4. d3 {[%emt 0:00:01]} Bb4 {[%emt 0:00:04]} 5. Bd2 {[%emt 0:00:01]} Bxc3 {[%emt 0:00:40]} 6. Bxc3 {[%emt 0:00:01]} d5 {[%emt 0:00:12]} 7. exd5 {[%emt 0:00:03]} Nxd5 {[%emt 0:00:03]} 8. Qf3 {[%emt 0:00:34]} Be6 {[%emt 0:00:24]} 9. Ne2 {[%emt 0:00:01]} O-O {[%emt 0:00:11]} 10. Bd2 {[%emt 0:00:03]} Qd6 {[%emt 0:01:19]} 11. a3 {[%emt 0:00:11]} Rad8 {[%emt 0:00:27]} 12. O-O {[%emt 0:00:02]} Nb6 {[%emt 0:00:20]} 13. Bxe6 {[%emt 0:00:21]} Qxe6 {[%emt 0:00:04]} 14. Rad1 {[%emt 0:00:53]} Rfe8 {[%emt 0:00:40]} 15. Rfe1 {[%emt 0:00:07]} Qg6 {[%emt 0:00:19]} 16. Be3 {[%emt 0:00:30]} Nd5 {[%emt 0:00:38]} 17. Ng3 {[%emt 0:00:08]} Nde7 {[%emt 0:01:17]} 18. Bc5 {[%emt 0:00:07]} Qf6 {[%emt 0:01:13]} 19. Qe4 {[%emt 0:00:38]} Ng6 {[%emt 0:00:13]} 20. Be3 {[%emt 0:01:42]} b6 21. Nh5 {[%emt 0:00:03]} Qd6 {[%emt 0:01:19]} 22. Qf3 {[%emt 0:00:58]} Nd4 {[%emt 0:00:16]} 23. Bxd4 {[%emt 0:00:07]} Qxd4 {[%emt 0:00:01]} 24. Rb1 {[%emt 0:01:00]} c5 {[%emt 0:00:23]} 25. h3 {[%emt 0:00:04]} Rd7 {[%emt 0:00:15]} 26. Re4 {[%emt 0:00:05]} Qd5 {[%emt 0:00:12]} 27. b3 {[%emt 0:00:24]} Rde7 {[%emt 0:00:20]} 28. Rbe1 {[%emt 0:00:12]} Qd6 {[%emt 0:00:08]} 29. Ng3 {[%emt 0:00:45]} Qf6 {[%emt 0:00:01]} 30. Nf5 {[%emt 0:00:01]} Re6 {[%emt 0:00:02]} 31. Qg4 {[%emt 0:00:27]} h6 {[%emt 0:00:25]} 32. h4 {[%emt 0:00:21]} Ne7 {[%emt 0:00:20]} 33. Ng3 {[%emt 0:00:47]} Qg6 {[%emt 0:00:09]} 34. Qe2 {[%emt 0:00:09]} Nc6 {[%emt 0:00:07]} 35. Rg4 {[%emt 0:00:40]} Qf6 {[%emt 0:00:09]} 36. Nh5 {[%emt 0:00:01]} Qe7 {[%emt 0:00:17]} 37. Nxg7 {[%emt 0:00:11]} Rg6 {[%emt 0:00:06]} 38. Nxe8 {[%emt 0:00:10]} Qxe8 {[%emt 0:00:01]} 39. Rxg6+ {[%emt 0:00:05]} fxg6 {[%emt 0:00:01]} 40. Qe4 {[%emt 0:00:04]} Qe6 {[%emt 0:00:01]} 41. b4 {[%emt 0:00:09]} cxb4 {[%emt 0:00:03]} 42. axb4 {[%emt 0:00:01]} Nd4 {[%emt 0:00:12]} 43. c3 {[%emt 0:00:21]} Nf5 {[%emt 0:00:10]} 44. Qxe5 {[%emt 0:00:04]} Qb3 {[%emt 0:00:08]} 45. Qe6+ {[%emt 0:00:03]} Qxe6 {[%emt 0:00:04]} 46. Rxe6 {[%emt 0:00:01]} Nxh4 {[%emt 0:00:02]} 47. g3 {[%emt 0:00:02]} Kf7 {[%emt 0:00:14]} 48. Rc6 {[%emt 0:00:01]} Nf5 {[%emt 0:00:03]} 49. Rc7+ {[%emt 0:00:03]} Ke6 {[%emt 0:00:01]} 50. Rxa7 {[%emt 0:00:03]} Kd6 {[%emt 0:00:04]} 51. Rh7 {[%emt 0:00:05]} h5 {[%emt 0:00:04]} 52. Kf1 {[%emt 0:00:05]} Kd5 {[%emt 0:00:02]} 53. Ke2 {[%emt 0:00:01]} b5 {[%emt 0:00:06]} 54. Rb7 {[%emt 0:00:07]} Kc6 {[%emt 0:00:04]} 55. Rf7 Kd5 {[%emt 0:00:12]} 56. Rf6 {[%emt 0:00:08]} Ne7 {[%emt 0:00:01]} 57. Rb6 {[%emt 0:00:01]} Nf5 {[%emt 0:00:06]} 58. Rxb5+ {[%emt 0:00:08]} Kc6 {[%emt 0:00:01]} 59. Re5 {[%emt 0:00:12]} Kd6 {[%emt 0:00:11]} 60. Ra5 {[%emt 0:00:01]} Ne7 {[%emt 0:00:05]} 61. Ra6+ {[%emt 0:00:03]} Kd5 {[%emt 0:00:02]} 62. Kd2 {[%emt 0:00:02]} Ke5 {[%emt 0:00:05]} 63. Ra5+ {[%emt 0:00:09]} Kd6 {[%emt 0:00:07]} 64. f4 {[%emt 0:00:04]} Kc6 {[%emt 0:00:13]} 65. Ra6+ {[%emt 0:00:02]} Kb5 {[%emt 0:00:03]} 66. Re6 {[%emt 0:00:05]} Nf5 {[%emt 0:00:04]} 67. Rxg6 {[%emt 0:00:03]} Ne7 {[%emt 0:00:02]} 68. Re6 {[%emt 0:00:01]} Nc6 {[%emt 0:00:03]} 69. c4+ {[%emt 0:00:03]} Kb6 {[%emt 0:00:06]} 70. b5 1-0

[Event "2nd FIDE WCC Rapid G12"]
[Site "Minsk"]
[Date "2018.06.23"]
[Round "7"]
[White "Shaban, Aliaksandra"]
[Black "Alekseenko, Mariya"]
[Result "0-1"]
[ECO "A56"]
[WhiteElo "1425"]
[BlackElo "1763"]
[Annotator "NA"]
[PlyCount "86"]
[EventDate "2018.06.22"]
[EventType "rapid"]
[EventCountry "BLR"]
[SourceTitle "playchess.com"]
[Source "ChessBase"]
[SourceQuality "1"]
[TimeControl "600+5"]

1. d4 {[%emt 0:00:00]} Nf6 {[%emt 0:00:01]} 2. c4 {[%emt 0:00:00]} c5 {[%emt 0:00:01]} 3. d5 {[%emt 0:00:00]} e5 {[%emt 0:00:01]} 4. dxe6 {[%emt 0:00:03]} fxe6 {[%emt 0:00:01]} 5. Nc3 {[%emt 0:00:01]} d5 {[%emt 0:00:04]} 6. e3 {[%emt 0:00:14]} Nc6 {[%emt 0:00:07]} 7. Nf3 {[%emt 0:00:02]} Be7 {[%emt 0:00:08]} 8. Be2 {[%emt 0:00:08]} O-O {[%emt 0:00:03]} 9. O-O {[%emt 0:00:02]} a6 {[%emt 0:00:08]} 10. b3 {[%emt 0:00:18]} d4 {[%emt 0:00:03]} 11. exd4 {[%emt 0:00:02]} cxd4 {[%emt 0:00:01]} 12. Nb1 {[%emt 0:00:07]} e5 {[%emt 0:00:02]} 13. Bb2 {[%emt 0:00:04]} Bc5 {[%emt 0:00:10]} 14. a3 {[%emt 0:00:06]} e4 {[%emt 0:00:12]} 15. Nfd2 {[%emt 0:00:26]} d3 {[%emt 0:00:26]} 16. Bxf6 {[%emt 0:01:15]} Qxf6 {[%emt 0:00:01]} 17. Ra2 {[%emt 0:00:08]} dxe2 {[%emt 0:00:14]} 18. Qxe2 {[%emt 0:00:01]} Bf5 {[%emt 0:00:05]} 19. b4 {[%emt 0:00:05]} Bd6 {[%emt 0:00:13]} 20. Nxe4 {[%emt 0:00:18]} Bxe4 {[%emt 0:00:03]} 21. Qxe4 {[%emt 0:00:02]} Rae8 {[%emt 0:00:04]} 22. Qd5+ {[%emt 0:00:01]} Kh8 {[%emt 0:00:02]} 23. Nd2 {[%emt 0:00:23]} Qe5 {[%emt 0:00:51]} 24. Qxe5 {[%emt 0:00:10]} Nxe5 {[%emt 0:00:01]} 25. c5 {[%emt 0:00:04]} Bc7 {[%emt 0:00:02]} 26. Raa1 {[%emt 0:00:09]} b6 {[%emt 0:00:13]} 27. cxb6 {[%emt 0:00:07]} Bxb6 {[%emt 0:00:01]} 28. h3 {[%emt 0:00:28]} Nd3 {[%emt 0:00:08]} 29. Nf3 {[%emt 0:00:04]} Re2 {[%emt 0:00:22]} 30. Kh2 {[%emt 0:01:17]} Nxf2 {[%emt 0:00:07]} 31. Rac1 {[%emt 0:00:31]} Re6 {[%emt 0:01:03]} 32. Ng5 {[%emt 0:00:27]} Ref6 {[%emt 0:00:01]} 33. Nf3 {[%emt 0:00:16]} h6 {[%emt 0:00:07]} 34. a4 {[%emt 0:00:10]} Nd3 {[%emt 0:00:15]} 35. Rc4 {[%emt 0:00:05]} Ba7 {[%emt 0:00:37]} 36. Kh1 {[%emt 0:00:57]} Kh7 {[%emt 0:00:13]} 37. Kh2 {[%emt 0:00:30]} Ne5 {[%emt 0:00:15]} 38. Rc3 {[%emt 0:00:10]} Nxf3+ {[%emt 0:00:31]} 39. Rcxf3 {[%emt 0:00:06]} Rxf3 {[%emt 0:00:03]} 40. Rxf3 {[%emt 0:00:01]} Rxf3 {[%emt 0:00:01]} 41. gxf3 {[%emt 0:00:03]} Kg6 {[%emt 0:00:00]} 42. Kg3 {[%emt 0:00:02]} Kf5 {[%emt 0:00:01]} 43. h4 {[%emt 0:00:14]} h5 0-1

[Event "2nd FIDE WCC Rapid G12"]
[Site "Minsk"]
[Date "2018.06.23"]
[Round "7"]
[White "Kudryavtseva, Anastasia"]
[Black "Shubenkova, Veronika"]
[Result "0-1"]
[ECO "D31"]
[WhiteElo "1420"]
[BlackElo "1700"]
[Annotator "NA"]
[PlyCount "69"]
[EventDate "2018.06.22"]
[EventType "rapid"]
[EventCountry "BLR"]
[SourceTitle "playchess.com"]
[Source "ChessBase"]
[SourceQuality "1"]
[TimeControl "600+5"]

1. d4 {[%emt 0:00:00]} d5 {[%emt 0:00:02]} 2. c4 {[%emt 0:00:00]} e6 {[%emt 0:00:09]} 3. Nc3 {[%emt 0:00:02]} f5 {[%emt 0:00:05]} 4. Nf3 {[%emt 0:00:08]} Nf6 {[%emt 0:00:02]} 5. Bg5 {[%emt 0:00:08]} Be7 {[%emt 0:00:03]} 6. e3 {[%emt 0:00:03]} c6 {[%emt 0:00:03]} 7. Bd3 {[%emt 0:00:23]} O-O {[%emt 0:00:08]} 8. O-O {[%emt 0:00:02]} Ne4 {[%emt 0:00:34]} 9. Bxe7 {[%emt 0:00:31]} Qxe7 {[%emt 0:00:20]} 10. Ne5 {[%emt 0:00:31]} Nd7 {[%emt 0:01:13]} 11. f4 {[%emt 0:00:08]} Nxe5 {[%emt 0:00:43]} 12. dxe5 {[%emt 0:00:26]} Qc5 {[%emt 0:01:17]} 13. Qe2 {[%emt 0:00:45]} Bd7 {[%emt 0:00:36]} 14. Rac1 {[%emt 0:00:18]} Qe7 {[%emt 0:00:57]} 15. Bxe4 {[%emt 0:01:01]} fxe4 {[%emt 0:00:29]} 16. cxd5 {[%emt 0:01:11]} cxd5 {[%emt 0:00:18]} 17. Kh1 {[%emt 0:00:36]} Rac8 {[%emt 0:00:22]} 18. g4 {[%emt 0:01:07]} a6 {[%emt 0:00:28]} 19. Rg1 {[%emt 0:00:23]} Rc5 {[%emt 0:00:20]} 20. Rcd1 {[%emt 0:00:31]} Rfc8 {[%emt 0:00:27]} 21. a3 {[%emt 0:00:11]} a5 {[%emt 0:00:14]} 22. Rd2 {[%emt 0:01:22]} b5 {[%emt 0:00:24]} 23. Rgd1 {[%emt 0:00:03]} b4 {[%emt 0:00:08]} 24. Nxe4 {[%emt 0:00:26]} Bb5 {[%emt 0:01:22]} 25. Qe1 {[%emt 0:00:58]} dxe4 {[%emt 0:00:04]} 26. g5 {[%emt 0:00:10]} Bd3 {[%emt 0:00:19]} 27. axb4 {[%emt 0:00:09]} axb4 {[%emt 0:00:02]} 28. h4 {[%emt 0:00:07]} b3 {[%emt 0:00:07]} 29. h5 {[%emt 0:00:15]} Rc2 {[%emt 0:00:11]} 30. Qf2 {[%emt 0:00:15]} Rxd2 {[%emt 0:00:10]} 31. Rxd2 {[%emt 0:00:01]} Rc1+ {[%emt 0:00:03]} 32. Kh2 {[%emt 0:00:01]} Rc2 {[%emt 0:00:02]} 33. Qg2 {[%emt 0:00:13]} Rxd2 {[%emt 0:00:03]} 34. Qxd2 Qc7 35. Kg3 0-1

[Event "2nd FIDE WCC Rapid G12"]
[Site "Minsk"]
[Date "2018.06.23"]
[Round "8"]
[White "Gaal, Zsoka"]
[Black "Krupnova, Anna"]
[Result "1-0"]
[ECO "D79"]
[WhiteElo "2060"]
[BlackElo "1761"]
[Annotator "NA RC"]
[PlyCount "126"]
[EventDate "2018.06.22"]
[EventType "rapid"]
[EventCountry "BLR"]
[SourceTitle "playchess.com"]
[Source "ChessBase"]
[SourceQuality "1"]
[TimeControl "600+5"]

1. Nf3 {[%emt 0:00:00]} Nf6 {[%emt 0:00:04]} 2. g3 {[%emt 0:00:00]} g6 {[%emt 0:00:01]} 3. Bg2 {[%emt 0:00:00]} Bg7 {[%emt 0:00:00]} 4. O-O {[%emt 0:00:01]} O-O {[%emt 0:00:02]} 5. d4 {[%emt 0:00:05]} d5 {[%emt 0:00:03]} 6. c4 {[%emt 0:00:01]} c6 {[%emt 0:00:04]} 7. cxd5 {[%emt 0:00:03]} cxd5 {[%emt 0:00:01]} 8. Ne5 {[%emt 0:00:02]} Ne4 {[%emt 0:02:06]} 9. Nd2 {[%emt 0:02:16] LiveBook: 32 Games} Nxd2 {[%emt 0:01:13]} 10. Bxd2 {[%emt 0:00:12]} Nc6 {[%emt 0:00:40] D78: Grünfeldindisch (Fianchetto 6.0-0 c6)} (10... Nd7 11. Bc3 Nf6 12. Qb3 Ne4 13. Bxe4 dxe4 14. Rfd1 Qb6 15. Qxb6 axb6 16. Nc4 Be6 17. d5 Bg4 18. Bxg7 Kxg7 {½-½ (27) Aronian,L (2812)-Gelfand,B (2777) Zuerich 2014}) 11. Nxc6 {[%emt 0:01:23]} bxc6 {[%emt 0:00:01]} 12. Bc3 {[%emt 0:00:10]} Bf5 $146 {[%emt 0:00:39]} ({Vorgänger:} 12... Qb6 13. Qd2 Re8 14. Rfe1 e5 15. dxe5 Bxe5 16. Bxe5 Rxe5 17. Rac1 Bf5 18. e3 {½-½ (64) Nordsieck,T (2276)-Scheider,J (2284) Germany 2015}) 13. Rc1 {[%emt 0:00:34]} Rc8 {[%emt 0:00:38]} 14. Qa4 Qb6 {[%emt 0:01:51]} 15. Rfd1 {[%emt 0:01:20]} Rfe8 {[%emt 0:00:52]} 16. e3 {[%emt 0:01:08]} Bd7 {[%emt 0:00:49]} 17. Qa5 {[%emt 0:01:11]} e6 {[%emt 0:00:40]} 18. Bb4 {[%emt 0:02:26]} Qxa5 {[%emt 0:00:24]} 19. Bxa5 {[%emt 0:00:02]} c5 {[%emt 0:00:11]} 20. Rxc5 {[%emt 0:00:24]} Rxc5 {[%emt 0:00:02]} 21. dxc5 {[%emt 0:00:00]} Bxb2 {[%emt 0:00:18]} 22. Rd2 {[%emt 0:00:08]} Ba3 {[%emt 0:00:28]} 23. e4 {[%emt 0:00:14]} Rb8 {[%emt 0:00:29]} 24. h4 {[%emt 0:00:09]} Rb1+ {[%emt 0:00:10]} 25. Kh2 {[%emt 0:00:01]} Rb5 {[%emt 0:00:06]} 26. Bc3 {[%emt 0:00:09]} Rxc5 {[%emt 0:00:12]} 27. Bd4 {[%emt 0:00:02]} Ra5 {[%emt 0:00:04]} 28. exd5 {[%emt 0:00:08]} exd5 29. Bf6 {[%emt 0:00:06]} Be6 {[%emt 0:00:08]} 30. Re2 {[%emt 0:00:04]} Bd6 {[%emt 0:00:06]} 31. Bh3 {[%emt 0:00:01]} h5 {[%emt 0:00:10]} 32. Bxe6 {[%emt 0:00:03]} fxe6 {[%emt 0:00:01]} 33. Rxe6 {[%emt 0:00:01]} Bc5 {[%emt 0:00:07]} 34. Re2 {[%emt 0:00:07]} Ra3 {[%emt 0:00:04]} 35. Kg2 {[%emt 0:00:08]} Kf7 {[%emt 0:00:03]} 36. Bg5 {[%emt 0:00:06]} d4 {[%emt 0:00:05]} 37. Rd2 {[%emt 0:00:03]} Rc3 {[%emt 0:00:10]} 38. Bf4 {[%emt 0:00:06]} d3 {[%emt 0:00:04]} 39. Kf3 {[%emt 0:00:07]} Rc2 {[%emt 0:00:04]} 40. Rxd3 Rxf2+ {[%emt 0:00:02]} 41. Ke4 {[%emt 0:00:03]} Rxa2 {[%emt 0:00:04]} 42. Rd7+ {[%emt 0:00:08]} Ke6 {[%emt 0:00:04]} 43. Rg7 {[%emt 0:00:03]} Ra4+ {[%emt 0:00:07]} 44. Kd3 {[%emt 0:00:15]} Kf6 {[%emt 0:00:03]} 45. Rb7 {[%emt 0:00:03]} Rd4+ {[%emt 0:00:05]} 46. Kc3 {[%emt 0:00:03]} Ra4 {[%emt 0:00:06]} 47. Bg5+ {[%emt 0:00:06]} Ke6 {[%emt 0:00:07]} 48. Rc7 {[%emt 0:00:09]} Bd4+ {[%emt 0:00:05]} 49. Kd3 {[%emt 0:00:00]} Bb6 {[%emt 0:00:09]} 50. Rc6+ {[%emt 0:00:04]} Kf7 {[%emt 0:00:02]} 51. Rf6+ {[%emt 0:00:08]} Kg7 {[%emt 0:00:01]} 52. Rd6 {[%emt 0:00:02]} Ra3+ {[%emt 0:00:02]} 53. Ke4 {[%emt 0:00:06]} Rxg3 {[%emt 0:00:02]} 54. Rd7+ {[%emt 0:00:02]} Kg8 $11 {[%emt 0:00:06]} 55. Ke5 {[%emt 0:00:08]} Rg1 {[%emt 0:00:13]} 56. Kf6 {[%emt 0:00:06]} Bc5 {[%emt 0:00:10]} 57. Kxg6 {[%emt 0:00:08]} Bf8 {[%emt 0:00:03]} 58. Kxh5 a5 {[%emt 0:00:05]} 59. Ra7 {[%emt 0:00:09]} Ra1 {[%emt 0:00:03]} 60. Kg6 {[%emt 0:00:02]} a4 {[%emt 0:00:09]} 61. h5 {[%emt 0:00:01]} a3 {[%emt 0:00:03]} 62. h6 {[%emt 0:00:13]} Rh1 {[%emt 0:00:03]} 63. h7+ {[%emt 0:00:04]} Rxh7 1-0

[Event "2nd FIDE WCC Rapid G12"]
[Site "Minsk"]
[Date "2018.06.23"]
[Round "8"]
[White "Alekseenko, Mariya"]
[Black "Omonova, Umida"]
[Result "1/2-1/2"]
[ECO "A21"]
[WhiteElo "1763"]
[BlackElo "1733"]
[Annotator "NA RC"]
[PlyCount "106"]
[EventDate "2018.06.22"]
[EventType "rapid"]
[EventCountry "BLR"]
[SourceTitle "playchess.com"]
[Source "ChessBase"]
[SourceQuality "1"]
[TimeControl "600+5"]

1. c4 {[%emt 0:00:00]} e5 {[%emt 0:00:01]} 2. Nc3 {[%emt 0:00:00]} d6 {[%emt 0:00:03]} 3. g3 {[%emt 0:00:00]} g6 {[%emt 0:00:01]} 4. Bg2 {[%emt 0:00:00]} Bg7 {[%emt 0:00:02]} 5. e3 {[%emt 0:00:02]} f5 {[%emt 0:00:02]} 6. Nge2 {[%emt 0:00:01]} Nc6 {[%emt 0:00:01]} 7. O-O {[%emt 0:00:03]} Nf6 {[%emt 0:00:07]} 8. d3 {[%emt 0:00:01]} O-O {[%emt 0:00:02]} 9. Rb1 {[%emt 0:00:02]} a5 {[%emt 0:00:01]} 10. a3 {[%emt 0:00:01]} Ne7 {[%emt 0:00:48]} 11. Nd5 {[%emt 0:00:19]} c6 {[%emt 0:00:10]} 12. Nxf6+ {[%emt 0:00:34]} Bxf6 {[%emt 0:00:01]} 13. b4 {[%emt 0:00:09]} axb4 {[%emt 0:00:07]} 14. axb4 {[%emt 0:00:01]} Qc7 {[%emt 0:00:15]} 15. Qb3 {[%emt 0:00:42]} Be6 {[%emt 0:00:04]} 16. b5 {[%emt 0:00:42]} Rfb8 {[%emt 0:00:22]} 17. Nc3 {[%emt 0:00:11]} Kg7 {[%emt 0:00:57]} 18. Bd2 {[%emt 0:00:42]} Qd8 {[%emt 0:00:17]} 19. e4 {[%emt 0:00:42]} Rc8 {[%emt 0:00:57]} 20. Be3 {[%emt 0:00:26]} Qd7 {[%emt 0:00:40]} 21. Na4 {[%emt 0:00:37]} cxb5 22. Nb6 bxc4 {[%emt 0:00:56]} 23. dxc4 {[%emt 0:00:47]} Qc7 {[%emt 0:00:41]} 24. Nxa8 {[%emt 0:00:11]} Rxa8 {[%emt 0:00:02]} 25. Qxb7 {[%emt 0:00:24]} Qxb7 {[%emt 0:00:09]} 26. Rxb7 {[%emt 0:00:01]} Rc8 {[%emt 0:00:50]} 27. Rc1 {[%emt 0:00:34]} Bxc4 {[%emt 0:00:28]} 28. Bf1 {[%emt 0:00:09]} Be6 {[%emt 0:00:06]} 29. Rxc8 {[%emt 0:00:15]} Bxc8 {[%emt 0:00:02]} 30. Rc7 {[%emt 0:00:03]} fxe4 {[%emt 0:00:11]} 31. Bc4 {[%emt 0:00:35]} Kf8 {[%emt 0:00:19]} 32. Bd2 {[%emt 0:00:40]} Ke8 {[%emt 0:01:08]} 33. Bb5+ {[%emt 0:00:31]} Kf7 {[%emt 0:01:03]} 34. Bb4 {[%emt 0:00:01]} Ke6 {[%emt 0:00:19]} 35. Bc4+ {[%emt 0:00:04]} d5 {[%emt 0:00:03]} 36. Bxe7 {[%emt 0:00:12]} Bxe7 {[%emt 0:00:14]} 37. Bxd5+ {[%emt 0:00:08]} Kxd5 {[%emt 0:00:03]} 38. Rxe7 {[%emt 0:00:06]} h5 {[%emt 0:00:06]} 39. h4 {[%emt 0:00:05]} Bf5 {[%emt 0:00:02]} 40. Kf1 {[%emt 0:00:02]} Kd6 {[%emt 0:00:01]} 41. Ra7 {[%emt 0:00:03]} Ke6 {[%emt 0:00:13]} 42. Ke2 {[%emt 0:00:01]} Bg4+ {[%emt 0:00:02]} 43. Ke3 {[%emt 0:00:01]} Bf3 {[%emt 0:00:03]} 44. Ra6+ {[%emt 0:00:17]} Kf5 {[%emt 0:00:02]} 45. Rb6 {[%emt 0:00:08]} Bg2 {[%emt 0:00:03]} 46. Rb4 {[%emt 0:00:56]} Bf3 {[%emt 0:00:02]} 47. Rb5 {[%emt 0:00:02]} Bg2 {[%emt 0:00:02]} 48. Rb8 {[%emt 0:00:20]} Bh1 {[%emt 0:00:15]} 49. Rf8+ {[%emt 0:00:13]} Ke6 {[%emt 0:00:02]} 50. Re8+ {[%emt 0:00:11]} Kf6 {[%emt 0:00:02]} 51. Rc8 {[%emt 0:00:21]} Bg2 {[%emt 0:00:03]} 52. Rc4 {[%emt 0:00:02]} Kf5 {[%emt 0:00:02]} 53. Rb4 {[%emt 0:00:04]} Bh1 {[%emt 0:00:02]} 1/2-1/2